fUSD/lending_fUSD_20240613
["ID","MTS","AMOUNT","RATE_DAILY","PERIOD"]
[329381860,1718297450210,-338.99782391,0.000139,2]
[329381861,1718297450230,-3396.04284698,0.000139,2]
[329381862,1718297450272,-9515.73965869,0.000139,2]
[329381863,1718297450300,-3295.8815,0.000139,2]
[329381864,1718297450310,-157.7428738,0.000139,2]
[329381865,1718297450333,-2361.6009,0.000139,2]
[329381866,1718297450351,-6266.727,0.000139,2]
[329381867,1718297450362,-176.98277657,0.000139,2]
[329381868,1718297450379,-1148.38029356,0.000139,2]
[329381869,1718297450392,-15786.25,0.000139,2]
[329381870,1718297450412,-325.32913525,0.000139,2]
[329381871,1718297450429,-152.51896572,0.000139,2]
[329381872,1718297450445,-167.60440198,0.000139,2]
[329381873,1718297450465,-423.10961844,0.0001394,2]
[329381874,1718297450484,-165.91535938,0.0001399,2]
[329381875,1718297450503,-152.25,0.0001399,2]
[329381876,1718297450567,-1010.6394239,0.00013999,2]
[329381877,1718297450610,-7590.4656016,0.00014,2]
[329381878,1718297450923,-827.75998797,0.00014,2]
[329381879,1718297450939,-138520.29813879,0.00014,2]
[329381880,1718297450952,-465.03184456,0.00014,2]
[329381881,1718297451440,-10853.4041801,0.00014,2]
[329381882,1718297451717,-673.38246188,0.00014,2]
[329381884,1718297451730,-35906.5206061,0.00014,2]
[329381886,1718297451744,-631.34941224,0.00014,2]
[329381889,1718297451757,-321.78687183,0.00014,2]
[329381944,1718297452645,-668.2233,0.00014,2]
[329382435,1718297515197,25000.0,0.00031757,30]
[329382436,1718297739042,25000.0,0.00031755,30]
[329382438,1718297896493,-338.72471674,0.0001354,2]
[329382439,1718297896535,-205.04112632,0.00013541,2]
[329382440,1718297896569,-1079.18557,0.0001386,2]
[329382441,1718297896627,-1158.88891787,0.000139,2]
[329382442,1718297896679,-325.32913525,0.000139,2]
[329382443,1718297896751,-364.83300295,0.000139,2]
[329382444,1718297896835,-164.71077272,0.000139,2]
[329382445,1718297896929,-152.51896572,0.000139,2]
[329382446,1718297896968,-205.3084137,0.00013985,2]
[329382447,1718297897016,-1737.96869295,0.0001399,2]
[329382448,1718297897085,-177.83699867,0.00013998,2]
[329382449,1718297897140,-237.07862092,0.00013998,2]
[329382450,1718297897180,-176.48295371,0.00013998,2]
[329382451,1718297897232,-1164.69161248,0.00013998,2]
[329382453,1718297902548,-1843.70799393,0.00013998,2]
[329382454,1718297902579,-523.64561114,0.00013998,2]
[329382455,1718297902625,-192.67532117,0.00013998,2]
[329382456,1718297902666,-173.54301844,0.00013998,2]
[329382457,1718297902707,-500.0,0.00013998,2]
[329382458,1718297902767,-316.92510636,0.00013999,2]
[329382459,1718297902809,-518.83621496,0.00013999,2]
[329382460,1718297902845,-757.97956792,0.00013999,2]
[329382461,1718297902895,-2035.95351699,0.00013999,2]
[329382462,1718297902940,-3136.73364909,0.00014,2]
[329382463,1718297903041,-10000.0,0.00014,2]
[329382464,1718297904426,-4692.070818,0.0001383,2]
[329382465,1718297904475,-5307.929182,0.00014,2]
[329382466,1718297905799,-10000.0,0.00014,2]
[329382467,1718297906569,-10000.0,0.00014,2]
[329382474,1718298017023,25000.0,0.00031755,30]
[329382476,1718298137694,25000.0,0.00031776,30]
[329382477,1718298273485,25000.0,0.00031776,30]
[329382478,1718298374295,25000.0,0.00031776,30]
[329382479,1718298490352,780.61744193,0.00031776,120]
[329382489,1718298617995,500.0,0.00031776,30]
[329382494,1718298633427,-621.8122,0.000139,2]
[329382495,1718298633438,-1487.24852572,0.000139,2]
[329382496,1718298633449,-3683.30261318,0.000139,2]
[329382497,1718298633460,-704.73916216,0.000139,2]
[329382498,1718298633473,-152.43,0.0001399,2]
[329382499,1718298633485,-165.91535938,0.0001399,2]
[329382500,1718298633496,-568.48467594,0.00013999,2]
[329382501,1718298633524,-204.95246598,0.00013999,2]
[329382502,1718298633542,-487.31411409,0.00013999,5]
[329382503,1718298633554,-4397.03593103,0.00014,2]
[329382504,1718298633571,-393.615957,0.00014,2]
[329382505,1718298633605,-537078.46791629,0.00014,2]
[329382506,1718298634002,-3667.01,0.00014,2]
[329382507,1718298634026,-17170.06602776,0.00014,2]
[329382510,1718298635116,-7.354e-05,0.00014,2]
[329382511,1718298635260,-5401.77045646,0.00014,2]
[329382512,1718298635384,-1184.12065375,0.00014,2]
[329382514,1718298639190,-406.8599087,0.00014,2]
[329382515,1718298639264,-823.17957833,0.00014,2]
[329382519,1718298643842,-658.38576266,0.00014,2]
[329382520,1718298644115,-1656.33443463,0.00014,2]
[329382521,1718298644129,-629.19573544,0.00014,2]
[329382522,1718298644158,-368.70319558,0.00014,2]
[329382523,1718298644592,-129480.71459578,0.00014,2]
[329382524,1718298644650,-6901.89399999,0.00014,2]
[329382525,1718298644904,-275.346,0.00014,2]
[329382526,1718298645790,-380.31691446,0.00014,2]
[329382527,1718298645810,-5854.6869003,0.00014,2]
[329382528,1718298645826,-4906.4475,0.00014,2]
[329382532,1718298647918,-477.47355398,0.00014,2]
[329382533,1718298647932,-1829.7458757,0.00014,2]
[329382534,1718298648075,-9000.00007,0.00014,2]
[329382535,1718298648090,-67153.44539544,0.00014,2]
[329382536,1718298648106,-297.205001,0.00014,2]
[329382537,1718298648125,-2853.691825,0.00014,2]
[329382538,1718298648143,-16918.89905673,0.00014,2]
[329382540,1718298648701,-668.25474719,0.00014,2]
[329382544,1718298648942,-349.84500001,0.00014,2]
[329382545,1718298648966,-30559.40352601,0.00014,2]
[329382546,1718298649265,-559.37281326,0.00014,2]
[329382547,1718298649719,-3574.65,0.00014,2]
[329382548,1718298649934,-445.62000001,0.00014,2]
[329382553,1718298654830,-426.36350696,0.00013999,2]
[329382554,1718298654896,-385.2157665,0.00014,2]
[329382555,1718298654914,-159523.75116202,0.00014,2]
[329382556,1718298654938,-20094.3,0.00014,2]
[329382557,1718298655279,-1361.05375852,0.00014,2]
[329382558,1718298655317,-7527.52000004,0.00014,2]
[329382559,1718298655540,-988.0,0.00014,2]
[329382560,1718298655559,-51433.24135567,0.00014,2]
[329382561,1718298655575,-2122.79068167,0.00014,2]
[329382562,1718298656027,-1645.36403757,0.00014,2]
[329382563,1718298656340,-11260.56224255,0.00014,2]
[329382564,1718298656358,-823.41300002,0.00014,2]
[329382565,1718298656383,-3909.10962145,0.00014,2]
[329382567,1718298656786,-334.24,0.00014,2]
[329382588,1718298867338,398.71071189,0.00031776,60]
[329382589,1718299235117,504.38,0.0001278,2]
[329382590,1718299299303,155.0,0.0001278,2]
[329382591,1718299307815,1364.1706901,0.0001278,2]
[329382592,1718299317097,155.0,0.0001278,2]
[329382593,1718299323809,714.2985873,0.0001278,2]
[329382594,1718299339066,219.04401576,0.0001278,2]
[329382609,1718299832776,-250.0,0.00013113,2]
[329382610,1718299832787,-1182.60164,0.00013114,2]
[329382611,1718299832804,-421.55839924,0.00013114,2]
[329382612,1718299832952,-97.25996076,0.00013114,2]
[329382613,1718299832976,-407.434252,0.00013135,2]
[329382614,1718299832989,-592.565748,0.00013135,2]
[329382615,1718299833012,-250.0,0.00013156,2]
[329382616,1718299833025,-39.76886722,0.00013156,2]
[329382617,1718299833082,-735.06296937,0.00013156,2]
[329382618,1718299833385,-309.90545819,0.00013156,2]
[329382619,1718299833427,-625.98436651,0.00013156,2]
[329382620,1718299833926,-466.69833871,0.00013156,2]
[329382621,1718299833952,-390.41,0.00013843,2]
[329382622,1718299833964,-390.41,0.00013881,2]
[329382623,1718299833977,-1030.98382353,0.00013886,2]
[329382624,1718299834000,-200.0,0.00013887,2]
[329382625,1718299834012,-500.0,0.00013887,2]
[329382626,1718299834026,-200.0,0.00013887,2]
[329382627,1718299834052,-200.0,0.00013888,2]
[329382628,1718299834085,-500.0,0.00013888,2]
[329382629,1718299834124,-500.0,0.00013888,2]
[329382630,1718299834166,-200.0,0.00013888,2]
[329382631,1718299834177,-499.99,0.00013888,2]
[329382632,1718299834191,-167.60440198,0.000139,2]
[329382633,1718299834203,-164.71077271,0.000139,2]
[329382634,1718299834218,-7182.5534,0.000139,2]
[329382635,1718299834235,-1014.02780311,0.000139,2]
[329382636,1718299834252,-24798.89374094,0.000139,2]
[329382637,1718299834278,-616.59989011,0.000139,2]
[329382638,1718299834298,-599.46000008,0.000139,2]
[329382639,1718299834313,-375.69751361,0.000139,2]
[329382640,1718299834329,-977.03499773,0.000139,2]
[329382641,1718299834356,-277.50880542,0.000139,2]
[329382642,1718299834445,-423.32484874,0.000139,2]
[329382643,1718299834477,-939.82724979,0.000139,2]
[329382662,1718299838616,-21295.30405358,0.000139,2]
[329382663,1718299838660,-1363.31114865,0.000139,2]
[329382664,1718299838691,-390.41,0.00013919,2]
[329382665,1718299838720,-390.41,0.00013957,2]
[329382666,1718299838735,-390.41,0.00013995,2]
[329382667,1718299838746,-3077.70877754,0.00013999,2]
[329382668,1718299838763,-319.77263022,0.00013999,2]
[329382669,1718299838804,-798.0,0.00014,2]
[329382670,1718299838818,-51886.0767367,0.00014,2]
[329382671,1718299838946,-3637.20517682,0.00014,2]
[329382672,1718299839596,-10749.99937268,0.00014,2]
[329382678,1718299843556,-239.82947266,0.00013999,2]
[329382679,1718299843580,-470.43052734,0.00014,2]
[329382680,1718299844508,-15085.66716918,0.00014,2]
[329382681,1718299844531,-707.3898016,0.00014,2]
[329382682,1718299844811,-7787.189,0.00014,2]
[329382684,1718299844826,-732.51196725,0.00014,2]
[329382685,1718299844843,-21819.99370451,0.00014,2]
[329382686,1718299844896,-5037.51144294,0.00014,2]
[329382688,1718299845196,-2421.6,0.00014,2]
[329382689,1718299845374,-401.38602258,0.00014,2]
[329382691,1718299845396,-4648.47061712,0.00014,2]
[329382696,1718299845680,-3217.47124158,0.00014,2]
[329382698,1718299846306,-6738.45839082,0.00014,2]
[329382699,1718299846343,-29898.51457964,0.00014,2]
[329382700,1718299846360,-7153.60866,0.00014,2]
[329382702,1718299846434,-482.65214482,0.00014,2]
[329382704,1718299846468,-10524.898,0.00014,2]
[329382705,1718299846486,-5276.24899944,0.00014,2]
[329382706,1718299846503,-2288.4699526,0.00014,2]
[329382707,1718299846580,-239.82947266,0.00013999,2]
[329382708,1718299846590,-11544.235066,0.00014,2]
[329382711,1718299846816,-25588.92496355,0.00014,2]
[329382721,1718299862850,-1256.46356726,0.0001386,2]
[329382722,1718299862864,-9793.95570205,0.0001386,2]
[329382723,1718299862876,-325.22959729,0.000139,2]
[329382724,1718299862890,-159.88631511,0.00013999,2]
[329382725,1718299862912,-300.0,0.00013999,2]
[329382726,1718299862923,-772.0,0.00014,2]
[329382727,1718299862937,-70294.80833099,0.00014,2]
[329382728,1718299882448,479.16,0.00011724,2]
[329382730,1718300036689,199.09377683,0.00031761,120]
[329382731,1718300055219,152.70398343,0.00031761,60]
[329382733,1718300178809,-263.02861684,0.00013134,2]
[329382734,1718300178844,-300.0,0.00013134,2]
[329382735,1718300178899,-968.89,0.00013135,2]
[329382736,1718300178948,-150.0,0.00013135,2]
[329382737,1718300196152,-8772.08138316,0.00013135,2]
[329382738,1718300225866,3082.05,0.00012857,2]
[329382739,1718300229299,875.86065225,0.00031761,120]
[329382740,1718300232219,516.81230267,0.00031761,120]
[329382741,1718300245548,196250.14200903,0.00012857,2]
[329382742,1718300294354,200.0,0.00012858,2]
[329382743,1718300374066,263.02861684,0.00012858,2]
[329382744,1718300390079,263.02861684,0.00012858,2]
[329382745,1718300396223,-45000.0,0.00013135,2]
[329382746,1718300406286,281.85820894,0.00012858,2]
[329382747,1718300422578,-11901.61032374,0.00013135,2]
[329382748,1718300422639,-169.78,0.00013228,2]
[329382749,1718300422730,-2857.21935252,0.00013298,2]
[329382750,1718300423628,50046.49839517,0.00012858,2]
[329382751,1718300425797,2106.97833856,9.644e-05,2]
[329382752,1718300427583,-2348.54694956,0.00012858,2]
[329382753,1718300427630,-12302.90610088,0.00012858,2]
[329382754,1718300520730,1955.51774149,0.000101,2]
[329382755,1718300566757,455.2,0.00010955,2]
[329382758,1718301032224,263.02861684,0.00010955,2]
[329382774,1718301033014,-1000.0,0.00012698,2]
[329382775,1718301033028,-1517.17431503,0.000127,2]
[329382777,1718301033046,-23900.0,0.00012848,2]
[329382778,1718301033062,-444.69462088,0.00012858,2]
[329382779,1718301033085,-250.0,0.00012872,2]
[329382780,1718301033111,-1918.37,0.00012872,2]
[329382781,1718301033186,-455.2,0.00013219,2]
[329382782,1718301033203,-292.8,0.00013226,2]
[329382783,1718301033264,-292.8,0.00013263,2]
[329382784,1718301033287,-292.8,0.00013299,2]
[329382785,1718301033303,-292.8,0.00013335,2]
[329382786,1718301033325,-150.99,0.00013335,2]
[329382787,1718301033348,-292.8,0.00013371,2]
[329382788,1718301033373,-292.8,0.00013408,2]
[329382789,1718301033388,-292.8,0.00013444,2]
[329382790,1718301033403,-292.8,0.0001348,2]
[329382791,1718301033420,-292.8,0.00013516,2]
[329382792,1718301033435,-292.8,0.00013553,2]
[329382793,1718301033447,-292.8,0.00013589,2]
[329382794,1718301033457,-292.8,0.00013625,2]
[329382795,1718301033468,-292.8,0.00013662,2]
[329382796,1718301033480,-292.8,0.00013698,2]
[329382797,1718301033495,-435.62,0.00013699,2]
[329382798,1718301033506,-200.0,0.00013699,2]
[329382799,1718301033516,-175.48,0.00013699,2]
[329382800,1718301033538,-292.8,0.00013734,2]
[329382801,1718301033566,-292.8,0.0001377,2]
[329382802,1718301033585,-1620.0,0.000138,2]
[329382803,1718301033601,-2500.0,0.000138,2]
[329382804,1718301033613,-292.8,0.00013807,2]
[329382805,1718301033625,-292.8,0.00013843,2]
[329382806,1718301033650,-292.8,0.00013879,2]
[329382807,1718301033661,-500.0,0.00013887,2]
[329382808,1718301033672,-500.0,0.00013888,2]
[329382809,1718301033697,-200.0,0.00013888,2]
[329382810,1718301033719,-887.27432773,0.00013895,2]
[329382811,1718301033734,-155.0,0.00013898,2]
[329382812,1718301033770,-167.60440198,0.000139,2]
[329382813,1718301033783,-245000.0,0.000139,2]
[329382814,1718301033809,-164.71077271,0.000139,2]
[329382815,1718301033834,-325.22959725,0.000139,2]
[329382816,1718301033850,-2455.53507546,0.000139,2]
[329382817,1718301033861,-292.8,0.00013915,2]
[329382818,1718301033882,-1064.39427,0.00013995,2]
[329382819,1718301033895,-17179.4611879,0.00013995,2]
[329382820,1718301033911,-2030.2763916,0.00013995,2]
[329382821,1718301033928,-150.01,0.00013999,2]
[329382822,1718301033950,-695.0,0.00014,2]
[329382823,1718301033967,-410357.99346741,0.00014,2]
[329382824,1718301034304,-1075.9549519,0.00014,2]
[329382825,1718301034379,-297.92526888,0.00014,2]
[329382826,1718301034400,-259.94301548,0.00014,2]
[329382827,1718301034430,-1305.71374145,0.00014,2]
[329382828,1718301034478,-2657.2665935,0.00014,2]
[329382829,1718301034591,-9543.36912199,0.00014,2]
[329382838,1718301034910,-0.09591904,0.00014,2]
[329382842,1718301039114,-169.76263021,0.00013999,2]
[329382843,1718301039158,-622.0,0.00014,2]
[329382844,1718301039171,-4932.88137862,0.00014,2]
[329382845,1718301039298,-1999.34416,0.00014,2]
[329382846,1718301039482,-674.10473515,0.00014,2]
[329382847,1718301039499,-30961.14939622,0.00014,2]
[329382848,1718301039748,-589.98973099,0.00014,2]
[329382849,1718301039780,-347.22,0.00014,2]
[329382850,1718301040146,-1920.38628,0.00014,2]
[329382851,1718301040165,-17461.640673,0.00014,2]
[329382852,1718301040198,-358.005,0.00014,2]
[329382853,1718301040634,-3378.6,0.00014,2]
[329382854,1718301040859,-312.84687233,0.00014,2]
[329382860,1718301043833,-324.96068105,0.00013998,2]
[329382861,1718301043857,-9891.07145296,0.00014,2]
[329382862,1718301043873,-12053.32946986,0.00014,2]
[329382863,1718301043889,-16186.31877508,0.00014,2]
[329382864,1718301044112,-664.0,0.00014,2]
[329382867,1718301044138,-3210.01354719,0.00014,2]
[329382870,1718301044153,-884.29427894,0.00014,2]
[329382872,1718301044167,-345.1849985,0.00014,2]
[329382873,1718301044182,-1476.6540648,0.00014,2]
[329382874,1718301044252,-666.8,0.00014,2]
[329382875,1718301044439,-17215.85572997,0.00014,2]
[329382876,1718301045708,-280905.86174851,0.00014,2]
[329382877,1718301045734,-64188.10666615,0.00014,2]
[329382878,1718301046048,-520.69500001,0.00014,2]
[329382879,1718301046061,-1667.25814587,0.00014,2]
[329382880,1718301046074,-1201.23505853,0.00014,2]
[329382881,1718301046100,-698.0783336,0.00014,2]
[329382882,1718301046112,-993.28232923,0.00014,2]
[329382883,1718301046144,-3753.29541752,0.00014,2]
[329382884,1718301046163,-2222.0873454,0.00014,2]
[329382885,1718301046667,-41621.34160899,0.00014,2]
[329382897,1718301048110,194.22818841,0.00010955,2]
[329382898,1718301052324,-217.81,0.00013699,2]
[329382900,1718301052367,-2118.3213166,0.00013999,2]
[329382901,1718301052413,-560.0,0.00014,2]
[329382902,1718301052436,-8827.35934273,0.00014,2]
[329382903,1718301052489,-10507.8664,0.00014,2]
[329382904,1718301052507,-3715.62327939,0.00014,2]
[329382905,1718301052535,-7466.78139312,0.00014,2]
[329382907,1718301052647,-4036.72479317,0.00014,2]
[329382908,1718301052664,-531.611266,0.00014,2]
[329382911,1718301052694,-1137.69529149,0.00014,2]
[329382924,1718301053233,-446.14741197,0.00014,2]
[329382925,1718301053246,-3690.56082276,0.00014,2]
[329382926,1718301053270,-1062.19338463,0.00014,2]
[329382927,1718301053811,-251.29351,0.00014,2]
[329382928,1718301053835,-2301.10079766,0.00014,2]
[329382929,1718301053942,-732.25253567,0.00014,2]
[329382930,1718301053956,-4157.38093013,0.00014,2]
[329382931,1718301053970,-5958.30201139,0.00014,2]
[329382932,1718301053985,-31504.5552,0.00014,2]
[329382933,1718301054000,-17221.89389467,0.00014,2]
[329382934,1718301054027,-4472.4747393,0.00014,2]
[329382935,1718301054045,-906.66049836,0.00014,2]
[329382936,1718301054067,-489.94951296,0.00014,2]
[329382937,1718301054120,-1446.5731672,0.00014,2]
[329382938,1718301054246,-670.09752,0.00014,2]
[329382939,1718301054281,-414.36,0.00014,2]
[329382940,1718301054307,-2615.90852854,0.00014,2]
[329382941,1718301054322,-4969.93,0.00014,2]
[329382942,1718301054339,-573.43013765,0.00014,2]
[329382943,1718301054491,-3345.05,0.00014,2]
[329382944,1718301054965,-354.37716682,0.00014,2]
[329382945,1718301054985,-420.62036438,0.00014,2]
[329382946,1718301054998,-934.72853748,0.00014,2]
[329382955,1718301748649,369.594,0.00031746,30]
[329382956,1718301762703,500.0,0.00031746,30]
[329382957,1718301763664,500.0,0.00031746,30]
[329382958,1718301764602,194.12,0.00031746,30]
[329382961,1718302082535,409.68,0.00011802,2]
[329382970,1718302233581,-689.43968726,0.00012276,2]
[329382971,1718302233625,-168.38872861,0.00013316,2]
[329382972,1718302233639,-2318.96,0.00013416,2]
[329382973,1718302233653,-250.0,0.00013468,2]
[329382974,1718302233666,-7194.93670094,0.00013599,2]
[329382975,1718302233691,-7382.376725,0.00013599,2]
[329382976,1718302233709,-2360.47515999,0.00013599,2]
[329382977,1718302233979,-3167.45141407,0.00013599,2]
[329382978,1718302234004,-500.0,0.00013599,2]
[329382979,1718302234021,-217.81,0.00013739,2]
[329382980,1718302234237,-1371.38,0.00013744,2]
[329382981,1718302234264,-1900.75,0.00013749,2]
[329382982,1718302234279,-150.0,0.00013771,2]
[329382983,1718302234305,-61123.9105,0.000138,2]
[329382984,1718302234325,-500.0,0.00013888,2]
[329382985,1718302234336,-200.0,0.00013888,2]
[329382986,1718302234354,-1723.43902166,0.000139,2]
[329382987,1718302234365,-167.60440198,0.000139,2]
[329382988,1718302234389,-164.71077271,0.000139,2]
[329382989,1718302234401,-10000.0,0.000139,2]
[329382990,1718302234412,-312.94323548,0.000139,2]
[329382991,1718302234426,-1031.74007221,0.000139,2]
[329382992,1718302234437,-1000.0,0.00013914,2]
[329382993,1718302234470,-584.99,0.0001399,3]
[329382994,1718302234524,-152.43,0.0001399,2]
[329382995,1718302234547,-200.0,0.00013992,2]
[329382996,1718302234569,-364.20577069,0.00013999,2]
[329382997,1718302234580,-506.0,0.00014,2]
[329382998,1718302234598,-20752.80386187,0.00014,2]
[329382999,1718302234609,-1042.87918512,0.00014,2]
[329383000,1718302234630,-299.79059261,0.00014,2]
[329383001,1718302234642,-111817.19140723,0.00014,2]
[329383002,1718302234699,-6155.85871046,0.00014,2]
[329383003,1718302234715,-7754.62903657,0.00014,2]
[329383004,1718302234805,-674.44896287,0.00014,2]
[329383005,1718302234998,-7987.01424638,0.00014,2]
[329383028,1718302244141,-217.40040456,0.00013999,2]
[329383029,1718302244157,-485.85252127,0.00013999,2]
[329383030,1718302244807,-506.10423746,0.00013998,2]
[329383031,1718302244835,-173.32581374,0.00013999,2]
[329383032,1718302244857,-4292.57166119,0.00013999,2]
[329383033,1718302244877,-3712.91364816,0.00014,2]
[329383034,1718302244892,-708.71801,0.00014,2]
[329383035,1718302245709,-1302.76719431,0.00013999,2]
[329383036,1718302245726,-263578.72334298,0.00014,2]
[329383045,1718302248758,-1603.97448,0.00014,2]
[329383046,1718302250164,-1315.06199799,0.00014,2]
[329383054,1718302251126,-307.14978371,0.00013999,2]
[329383055,1718302251157,-187702.30770633,0.00014,2]
[329383056,1718302251242,-2865.03074225,0.00014,2]
[329383057,1718302251473,-128317.955629,0.00014,2]
[329383058,1718302251502,-1609.9999999,0.00014,2]
[329383059,1718302251517,-73480.0,0.00014,2]
[329383060,1718302251536,-890.84377434,0.00014,2]
[329383061,1718302251552,-24789.43516564,0.00014,2]
[329383062,1718302251574,-65312.83688497,0.00014,2]
[329383113,1718302655136,389.19,0.00011282,2]
[329383115,1718302704009,2106.97833856,0.000105,2]
[329383116,1718302762707,-156.78906714,0.0001128,2]
[329383117,1718302762739,-1499.40159744,0.00011281,2]
[329383118,1718302762776,-300.0,0.00011281,2]
[329383119,1718302762811,-18043.80933542,0.00011282,2]
[329383120,1718302763319,-20000.0,0.00011282,2]
[329383121,1718302763609,-20000.0,0.00011282,2]
[329383122,1718302763936,-20000.0,0.00011282,2]
[329383123,1718302764243,-20000.0,0.00011282,2]
[329383124,1718302764730,-20000.0,0.00011282,2]
[329383126,1718302785759,155.0,0.00014,7]
[329383127,1718302789321,263.02861684,0.000105,2]
[329383128,1718302789788,-155.0,0.0001128,2]
[329383129,1718302789818,-538.09065893,0.00011281,2]
[329383130,1718302789905,-19306.90934107,0.00011282,2]
[329383131,1718302790582,-20000.0,0.00011282,2]
[329383132,1718302792299,-3134.13043988,0.00011282,2]
[329383133,1718302794257,1053.60455059,0.0001128,2]
[329383134,1718302796384,522.84728183,0.0001128,2]
[329383135,1718302796481,15289.4177277,0.0001128,2]
[329383136,1718302796513,20000.0,0.0001128,2]
[329383137,1718302805333,194.22818841,0.000105,2]
[329383138,1718302831222,24672.59938197,0.000105,2]
[329383139,1718302836691,-222.53021202,0.00011279,2]
[329383140,1718302836734,-4921.46978798,0.0001128,2]
[329383141,1718302840354,133050.23839996,0.000105,2]
[329383142,1718302850548,-10000.0,0.0001128,2]
[329383143,1718302852858,-10000.0,0.0001128,2]
[329383144,1718302853172,1546.99257046,0.000105,2]
[329383145,1718302853816,-10000.0,0.0001128,2]
[329383146,1718302854593,-10000.0,0.0001128,2]
[329383147,1718302855292,-10000.0,0.0001128,2]
[329383148,1718302855505,180.76997474,0.000105,2]
[329383149,1718302858390,1613.64843882,0.000105,2]
[329383150,1718302869402,1417.53422513,0.000105,2]
[329383151,1718302883018,5408.92807793,0.000105,2]
[329383152,1718302892311,-678.26650682,0.0001128,2]
[329383153,1718302897988,683.73349318,7.875e-05,2]
[329383154,1718302898020,1869.81819559,7.875e-05,2]
[329383161,1718302901139,5206.08607307,0.000105,2]
[329383162,1718302903702,948.25766331,0.000105,2]
[329383163,1718302904402,2920.83517909,0.000105,2]
[329383164,1718302907392,1364.1706901,0.000105,2]
[329383165,1718302909952,226.08362702,0.000105,2]
[329383166,1718302910059,410.89401693,0.000105,2]
[329383167,1718302917357,948.25766331,0.000105,2]
[329383168,1718302925992,219.97009381,0.000105,2]
[329383169,1718302929258,605.22759629,0.000105,2]
[329383170,1718302937337,324.76208202,0.000105,2]
[329383173,1718303142594,-600.0,0.00012426,2]
[329383176,1718303242201,-1625.93576349,0.00012225,2]
[329383177,1718303242232,-293.0,0.00012226,2]
[329383178,1718303242273,-6376.02221692,0.00012227,2]
[329383179,1718303242315,-150.0,0.00012275,2]
[329383180,1718303242342,-6376.0222169,0.00012276,2]
[329383181,1718303242368,-6376.0222169,0.00012325,2]
[329383182,1718303242398,-156.14105209,0.00012326,2]
[329383183,1718303242433,-156.14105209,0.00012327,2]
[329383184,1718303242462,-250.0,0.00012521,2]
[329383185,1718303242496,-5140.79363786,0.00012531,2]
[329383186,1718303242525,-4107.04970264,0.00012634,2]
[329383187,1718303242555,-8202.97292782,0.00012644,2]
[329383188,1718303252216,-511.91,0.00011926,2]
[329383189,1718303252247,-1900.10707218,0.00012644,2]
[329383190,1718303252294,-1612.4,0.00012733,2]
[329383191,1718303252357,-172.13,0.00012797,2]
[329383192,1718303252397,-1000.0,0.00012799,2]
[329383193,1718303252461,-1491.37331448,0.00012876,2]
[329383207,1718303432665,-181.48,0.00011268,2]
[329383208,1718303432692,-3000.0,0.00012875,2]
[329383209,1718303432714,-3649.48098552,0.00012876,2]
[329383210,1718303432727,-161.94729934,0.00012978,2]
[329383211,1718303432740,-257.55190198,0.00013298,2]
[329383212,1718303432752,-1141.05,0.00013709,2]
[329383213,1718303432768,-250.0,0.00013746,2]
[329383214,1718303432781,-1395.66,0.00013861,2]
[329383215,1718303432796,-300.0,0.00013887,2]
[329383216,1718303432806,-150.0,0.00013887,2]
[329383217,1718303432819,-150.0,0.00013887,2]
[329383218,1718303432830,-500.0,0.00013888,2]
[329383219,1718303432841,-200.0,0.00013888,2]
[329383220,1718303432852,-219.61,0.0001389,2]
[329383221,1718303432888,-592.0538,0.000139,2]
[329383222,1718303433046,-1579.81910328,0.000139,2]
[329383223,1718303433064,-167.60440198,0.000139,2]